bitfinex-derivatives/quotes_BTCF0:USTF0_20250719
["timestamp","ask_amount","ask_price","bid_price","bid_amount"]
[1752909530205,1.01948488,118360.0,118350.0,1.11838918]
[1752909530700,0.85449081,118360.0,118350.0,1.11838918]
[1752909531002,1.01948488,118360.0,118350.0,1.28725578]
[1752909534905,1.01948488,118360.0,118350.0,1.12226171]
[1752909535106,1.01948488,118360.0,118350.0,1.28725578]
[1752909536207,1.01948488,118360.0,118350.0,1.12226171]
[1752909536409,0.85449081,118360.0,118350.0,1.28725578]
[1752909536712,0.85449081,118360.0,118350.0,1.45224985]
[1752909536905,0.85449081,118360.0,118350.0,1.28725578]
[1752909538009,0.78772375,118360.0,118350.0,1.28725578]
[1752909542008,0.53443255,118360.0,118350.0,1.28725578]
[1752909542212,0.70786485,118360.0,118350.0,1.45224985]
[1752909543503,0.69097642,118360.0,118350.0,1.45224985]
[1752909544112,0.19097642,118360.0,118350.0,1.45224985]
[1752909546516,0.02212412,118360.0,118350.0,1.45224985]
[1752909546717,0.02212412,118360.0,118350.0,1.12226171]
[1752909546917,0.02212412,118360.0,118350.0,1.45224985]
[1752909548013,0.02212412,118360.0,118350.0,1.81304985]
[1752909549718,0.01754412,118360.0,118350.0,1.81304985]
[1752909551120,0.01754412,118360.0,118350.0,1.8129383]
[1752909552217,0.0219735,118370.0,118360.0,0.1688523]
[1752909552417,0.0219735,118370.0,118360.0,0.85964044]
[1752909552418,0.03942744,118370.0,118360.0,0.85964044]
[1752909553422,0.04042668,118370.0,118360.0,0.85964044]
[1752909557625,0.04042668,118370.0,118360.0,0.87812291]
[1752909560623,0.02303318,118370.0,118360.0,0.87812291]
[1752909562728,0.02303318,118370.0,118360.0,0.51732291]
[1752909562927,0.02303318,118370.0,118360.0,1.23892291]
[1752909564322,0.04039254,118370.0,118360.0,0.90893477]
[1752909564519,0.04039254,118370.0,118360.0,1.23892291]
[1752909565230,0.20923054,118370.0,118360.0,1.23892291]
[1752909565919,0.04039254,118370.0,118360.0,1.23892291]
[1752909567132,0.08890254,118370.0,118360.0,1.23892291]
[1752909569928,0.25774064,118370.0,118360.0,0.18733477]
[1752909570135,0.25774064,118370.0,118360.0,1.23892291]
[1752909572331,0.25774064,118370.0,118360.0,2.40708291]
[1752909576938,0.25774064,118370.0,118360.0,1.68548291]
[1752909577136,0.25774064,118370.0,118360.0,2.40708291]
[1752909579241,0.08890254,118370.0,118360.0,2.40708291]
[1752909581140,0.25774054,118370.0,118360.0,2.40708291]
[1752909585744,0.08890254,118370.0,118360.0,2.40708291]
[1752909592849,0.07144936,118370.0,118360.0,2.40708291]
[1752909594756,0.07144936,118370.0,118360.0,2.98940291]
[1752909594958,0.07117764,118370.0,118360.0,2.98967291]
[1752909597460,0.24001684,118370.0,118360.0,2.98967291]
[1752909597760,0.25755988,118370.0,118360.0,2.98967291]
[1752909597960,0.08872068,118370.0,118360.0,2.98967291]
[1752909599260,0.25755988,118370.0,118360.0,2.98967291]
[1752909599760,0.25755988,118370.0,118360.0,2.26807291]
[1752909599961,0.25755988,118370.0,118360.0,2.98967291]
[1752909602570,0.27326988,118370.0,118360.0,2.98967291]
[1752909603065,0.29112988,118370.0,118360.0,2.98967291]
[1752909606767,0.29112988,118370.0,118360.0,2.26807291]
[1752909606966,0.29112988,118370.0,118360.0,2.98967291]
[1752909608763,0.29112988,118370.0,118360.0,2.26807291]
[1752909608969,0.29112988,118370.0,118360.0,2.98967291]
[1752909610069,0.29112988,118370.0,118360.0,2.26807291]
[1752909610266,0.29112988,118370.0,118360.0,2.98967291]
[1752909612373,0.29112988,118370.0,118360.0,2.26807291]
[1752909612575,0.29112988,118370.0,118360.0,2.98967291]
[1752909614876,0.29112988,118370.0,118360.0,2.26807291]
[1752909615175,0.29112988,118370.0,118360.0,2.98967291]
[1752909618375,0.29112988,118370.0,118360.0,2.26807291]
[1752909618571,0.29112988,118370.0,118360.0,2.98967291]
[1752909619266,0.29102672,118370.0,118360.0,2.98967291]
[1752909624077,0.29102672,118370.0,118360.0,2.26807291]
[1752909624276,0.29102672,118370.0,118360.0,2.98967291]
[1752909627680,0.29102672,118370.0,118360.0,2.65968477]
[1752909627872,0.29102672,118370.0,118360.0,2.98967291]
[1752909633679,0.29102672,118370.0,118360.0,2.26807291]
[1752909633880,0.29102672,118370.0,118360.0,2.98967291]
[1752909644483,0.25745672,118370.0,118360.0,2.98967291]
[1752909647786,0.25745672,118370.0,118360.0,2.26807291]
[1752909647987,0.25745672,118370.0,118360.0,2.98967291]
[1752909650588,0.25745672,118370.0,118360.0,2.99067291]
[1752909650888,0.25745672,118370.0,118360.0,2.26907291]
[1752909651088,0.25745672,118370.0,118360.0,2.99067291]
[1752909651689,0.25645672,118370.0,118360.0,2.99067291]
[1752909654390,0.25645672,118370.0,118360.0,2.26907291]
[1752909654592,0.25645672,118370.0,118360.0,2.99067291]
[1752909658395,0.25645672,118370.0,118360.0,2.26907291]
[1752909658590,0.25645672,118370.0,118360.0,2.99067291]
[1752909659095,0.08761752,118370.0,118360.0,2.99067291]
[1752909659394,0.25645672,118370.0,118360.0,2.99067291]
[1752909659794,0.25645672,118370.0,118360.0,2.66068477]
[1752909659994,0.25645672,118370.0,118360.0,2.99067291]
[1752909670901,0.25645672,118370.0,118360.0,2.26907291]
[1752909671103,0.25645672,118370.0,118360.0,2.99067291]
[1752909671702,0.25645672,118370.0,118360.0,2.26907291]
[1752909671902,0.25645672,118370.0,118360.0,2.99067291]
[1752909673801,0.25645672,118370.0,118360.0,2.26907291]
[1752909674103,0.25645672,118370.0,118360.0,2.99067291]
[1752909675813,0.25645672,118370.0,118360.0,2.26907291]
[1752909676013,0.25645672,118370.0,118360.0,2.99067291]
[1752909677413,0.25645672,118370.0,118360.0,2.66068477]
[1752909677613,0.29106672,118370.0,118360.0,2.66068477]
[1752909677815,0.29106672,118370.0,118360.0,2.99067291]
[1752909678315,0.29106672,118370.0,118360.0,2.66068477]
[1752909678615,0.29106672,118370.0,118360.0,2.99067291]
[1752909679511,0.29106672,118370.0,118360.0,2.62987291]
[1752909680015,0.29106672,118370.0,118360.0,2.63010667]
[1752909683217,0.11983752,118370.0,118360.0,2.63010667]
[1752909683517,0.08761752,118370.0,118360.0,2.63010667]
[1752909685019,0.07025816,118370.0,118360.0,2.63010667]
[1752909691326,0.06594988,118370.0,118360.0,2.63010667]
[1752909692025,0.06594988,118370.0,118360.0,2.99090667]
[1752909692726,0.06594988,118370.0,118360.0,2.26930667]
[1752909692931,0.06594988,118370.0,118360.0,2.99090667]
[1752909695729,0.06594988,118370.0,118360.0,2.66091853]
[1752909696030,0.06594988,118370.0,118360.0,2.99090667]
[1752909696230,0.07088988,118370.0,118360.0,2.99090667]
[1752909697226,0.08687988,118370.0,118360.0,2.99090667]
[1752909697426,0.07088988,118370.0,118360.0,2.99090667]
[1752909698235,0.07083292,118370.0,118360.0,2.99090667]
[1752909699935,0.07083292,118370.0,118360.0,2.26930667]
[1752909700135,0.07083292,118370.0,118360.0,2.99090667]
[1752909700736,0.07083292,118370.0,118360.0,2.99063495]
[1752909703438,0.07083292,118370.0,118360.0,2.26903495]
[1752909703634,0.07083292,118370.0,118360.0,2.99063495]
[1752909705840,0.07083292,118370.0,118360.0,2.26903495]
[1752909706040,0.07083292,118370.0,118360.0,2.99063495]
[1752909712144,0.06589292,118370.0,118360.0,2.99063495]
[1752909713545,0.07083292,118370.0,118360.0,2.99063495]
[1752909717249,0.07083292,118370.0,118360.0,2.66064681]
[1752909717449,0.07083292,118370.0,118360.0,2.99063495]
[1752909719448,0.05345,118370.0,118360.0,2.99063495]
[1752909719648,0.07083125,118370.0,118360.0,2.99063495]
[1752909721137,0.23966945,118370.0,118360.0,2.99063495]
[1752909721338,0.07083125,118370.0,118360.0,2.99063495]
[1752909721547,0.06589125,118370.0,118360.0,2.99063495]
[1752909722549,0.07079125,118370.0,118360.0,2.99063495]
[1752909723952,0.07079125,118370.0,118360.0,2.26903495]
[1752909724249,0.07079125,118370.0,118360.0,2.99063495]
[1752909726353,0.01738125,118370.0,118360.0,2.99063495]
[1752909727355,0.06570125,118370.0,118360.0,2.99063495]
[1752909728353,0.01738125,118370.0,118360.0,2.99063495]
[1752909728949,0.06570125,118370.0,118360.0,2.99063495]
[1752909730154,0.06570125,118370.0,118360.0,1.24015495]
[1752909730354,0.06570125,118370.0,118360.0,2.98863495]
[1752909731049,0.06570125,118370.0,118360.0,2.26703495]
[1752909731257,0.06570125,118370.0,118360.0,2.98863495]
[1752909731753,0.06570125,118370.0,118360.0,2.65864681]
[1752909731953,0.06570125,118370.0,118360.0,2.98863495]
[1752909732254,0.07060125,118370.0,118360.0,2.98863495]
[1752909732953,0.07060125,118370.0,118360.0,2.65864681]
[1752909733153,0.07060125,118370.0,118360.0,2.98863495]
[1752909733956,0.23944105,118370.0,118360.0,2.98863495]
[1752909735150,0.23454105,118370.0,118360.0,2.98863495]
[1752909735352,0.06570125,118370.0,118360.0,2.98863495]
[1752909735554,0.23454105,118370.0,118360.0,2.98863495]
[1752909740159,0.23944105,118370.0,118360.0,2.98863495]
[1752909742362,0.23944105,118370.0,118360.0,2.26703495]
[1752909742662,0.23944105,118370.0,118360.0,2.98863495]
[1752909746867,0.23944105,118370.0,118360.0,2.26703495]
[1752909747069,0.23944105,118370.0,118360.0,2.98863495]
[1752909749772,0.23944105,118370.0,118360.0,2.26703495]
[1752909750072,0.23944105,118370.0,118360.0,2.98863495]
[1752909751772,0.23944105,118370.0,118360.0,2.26703495]
[1752909752169,0.23944105,118370.0,118360.0,2.98863495]
[1752909752871,0.23944105,118370.0,118360.0,2.26703495]
[1752909753073,0.23944105,118370.0,118360.0,2.98863495]
[1752909753772,0.23944105,118370.0,118360.0,2.26703495]
[1752909753977,0.23944105,118370.0,118360.0,2.98863495]
[1752909756880,0.23944105,118370.0,118360.0,2.40827495]
[1752909757080,0.27211105,118370.0,118360.0,2.98827495]
[1752909758486,0.27211105,118370.0,118360.0,2.62747495]
[1752909767085,0.2523598,118370.0,118360.0,2.62747495]
[1752909767286,0.25469133,118370.0,118360.0,2.62747495]
[1752909767986,0.23948133,118370.0,118360.0,2.62747495]
[1752909768782,0.23948133,118370.0,118360.0,2.26667495]
[1752909768987,0.23948133,118370.0,118360.0,2.62747495]
[1752909770883,0.01742153,118370.0,118360.0,2.62747495]
[1752909771085,0.01742153,118370.0,118360.0,2.93266902]
[1752909771388,0.06360153,118370.0,118360.0,2.93266902]
[1752909771891,0.06360153,118370.0,118360.0,2.76767495]
[1752909772588,0.06360153,118370.0,118360.0,2.93266902]
[1752909772788,0.06360153,118370.0,118360.0,2.76767495]
[1752909773085,0.06360153,118370.0,118360.0,2.93266902]
[1752909775396,0.06360153,118370.0,118360.0,2.79246902]
[1752909775894,0.06360153,118370.0,118360.0,2.62747495]
[1752909776294,0.06360153,118370.0,118360.0,2.79246902]
[1752909778496,0.06360153,118370.0,118360.0,2.74249511]
[1752909782799,0.01742153,118370.0,118360.0,2.74249511]
[1752909784098,0.06576153,118370.0,118360.0,2.74249511]
[1752909786203,0.06576153,118370.0,118360.0,2.88269511]
[1752909786701,0.06576153,118370.0,118360.0,2.52189511]
[1752909786996,0.06576153,118370.0,118360.0,3.24349511]
[1752909787201,0.06576153,118370.0,118360.0,3.09515901]
[1752909788101,0.07064153,118370.0,118360.0,3.09515901]
[1752909788701,0.07064153,118370.0,118360.0,2.37355901]
[1752909788902,0.07064153,118370.0,118360.0,3.09515901]
[1752909789100,0.07064153,118370.0,118360.0,2.37355901]
[1752909789300,0.07064153,118370.0,118360.0,3.09515901]
[1752909790702,0.07064153,118370.0,118360.0,2.95495901]
[1752909794403,0.07064153,118370.0,118360.0,3.10329511]
[1752909794905,0.07064153,118370.0,118360.0,2.38169511]
[1752909795204,0.07064153,118370.0,118360.0,3.10329511]
[1752909799107,0.06576153,118370.0,118360.0,3.10329511]
[1752909800109,0.06576153,118370.0,118360.0,3.10346622]
[1752909800909,0.06576153,118370.0,118360.0,3.24366622]
[1752909801107,0.07064153,118370.0,118360.0,3.24366622]
[1752909802306,0.06576153,118370.0,118360.0,3.24366622]
[1752909803111,0.06576153,118370.0,118360.0,2.52206622]
[1752909803305,0.06576153,118370.0,118360.0,3.24366622]
[1752909805006,0.07064153,118370.0,118360.0,3.24366622]
[1752909806110,0.06576153,118370.0,118360.0,3.24366622]
[1752909806910,0.07064153,118370.0,118360.0,3.24366622]
[1752909807411,0.06576153,118370.0,118360.0,3.24366622]
[1752909809208,0.01742153,118370.0,118360.0,3.24366622]
[1752909810816,0.06576153,118370.0,118360.0,3.24366622]
[1752909816421,0.06576153,118370.0,118360.0,2.52206622]
[1752909816620,0.06576153,118370.0,118360.0,3.24366622]
[1752909816821,0.04834,118370.0,118360.0,3.24366622]
[1752909818418,0.00488,118380.0,118370.0,0.16928]
[1752909818620,0.05281,118380.0,118370.0,1.4063022]
[1752909818823,0.07031936,118380.0,118370.0,1.4063022]
[1752909819325,0.08660936,118380.0,118370.0,1.4063022]
[1752909819823,0.08660936,118380.0,118370.0,1.7671022]
[1752909820025,0.08760936,118380.0,118370.0,1.7671022]
[1752909820426,0.10526936,118380.0,118370.0,1.7671022]
[1752909821419,0.10426936,118380.0,118370.0,1.7671022]
[1752909821726,0.10526936,118380.0,118370.0,1.7671022]
[1752909822224,0.10426936,118380.0,118370.0,1.7671022]
[1752909825832,0.08660936,118380.0,118370.0,1.7671022]
[1752909830440,0.08660936,118380.0,118370.0,1.0455022]
[1752909830641,0.08660936,118380.0,118370.0,1.7671022]
[1752909831639,0.01750936,118380.0,118370.0,1.7671022]
[1752909831836,0.04793,118390.0,118380.0,0.1695372]
[1752909832038,0.06546141,118390.0,118380.0,0.8270094]
[1752909832842,0.07017141,118390.0,118380.0,0.8270094]
[1752909833644,0.06646141,118390.0,118380.0,0.8270094]
[1752909833838,0.06646141,118390.0,118380.0,0.9753455]
[1752909834036,0.06746141,118390.0,118380.0,0.9753455]
[1752909834735,0.01953141,118390.0,118380.0,0.9753455]
[1752909841149,0.002,118390.0,118380.0,0.9753455]
[1752909843552,0.05051,118390.0,118380.0,0.9753455]
[1752909845054,0.002,118390.0,118380.0,0.9753455]
[1752909845255,0.001,118390.0,118380.0,0.9753455]
[1752909846354,0.07057971,118400.0,118390.0,0.1688129]
[1752909846555,0.08808705,118400.0,118390.0,1.4058351]
[1752909846754,0.08808705,118400.0,118390.0,1.0450351]
[1752909846956,0.08808705,118400.0,118390.0,1.7666351]
[1752909847557,0.08808627,118400.0,118390.0,1.7666351]
[1752909847757,0.08808627,118400.0,118390.0,2.9345151]
[1752909847957,0.08908627,118400.0,118390.0,2.9345151]
[1752909848156,0.09008627,118400.0,118390.0,2.9345151]
[1752909851655,0.07272656,118400.0,118390.0,2.9345151]
[1752909851953,0.07272656,118400.0,118390.0,2.95185194]
[1752909855259,0.07272656,118400.0,118390.0,3.01830251]
[1752909858060,0.07272656,118400.0,118390.0,2.29670251]
[1752909858250,0.07272656,118400.0,118390.0,3.01830251]
[1752909867966,0.07272656,118400.0,118390.0,2.29670251]
[1752909868266,0.07272656,118400.0,118390.0,3.01830251]
[1752909872071,0.07272656,118400.0,118390.0,2.29670251]
[1752909872271,0.07272656,118400.0,118390.0,3.01830251]
[1752909872570,0.07308879,118400.0,118390.0,3.01830251]
[1752909873971,0.07308879,118400.0,118390.0,2.29670251]
[1752909874174,0.07308879,118400.0,118390.0,3.01830251]
[1752909875972,0.10537879,118400.0,118390.0,3.01830251]
[1752909877774,0.10537879,118400.0,118390.0,2.72163031]
[1752909877977,0.10537879,118400.0,118390.0,3.01830251]
[1752909878777,0.06837879,118400.0,118390.0,3.01830251]
[1752909880779,0.06837879,118400.0,118390.0,2.72163031]
[1752909880980,0.06837879,118400.0,118390.0,3.01830251]
[1752909881281,0.07320879,118400.0,118390.0,3.01830251]
[1752909885880,0.07320879,118400.0,118390.0,3.15850251]
[1752909886075,0.07320879,118400.0,118390.0,3.01830251]
[1752909886780,0.06837879,118400.0,118390.0,3.01830251]
[1752909901095,0.07320879,118400.0,118390.0,3.01830251]
[1752909901696,0.07220879,118400.0,118390.0,3.01830251]
[1752909901899,0.07120879,118400.0,118390.0,3.01830251]
[1752909902598,0.07125414,118400.0,118390.0,3.01830251]
[1752909904598,0.07125414,118400.0,118390.0,2.72163031]
[1752909904799,0.07125414,118400.0,118390.0,3.01830251]
[1752909911809,0.07125414,118400.0,118390.0,2.86996641]
[1752909912114,0.07125414,118400.0,118390.0,3.01830251]
[1752909913713,0.08703414,118400.0,118390.0,3.01830251]
[1752909914016,0.10599414,118400.0,118390.0,3.01830251]
[1752909914918,0.10599414,118400.0,118390.0,2.29670251]
[1752909915119,0.10599414,118400.0,118390.0,3.01830251]
[1752909922323,0.10599414,118400.0,118390.0,2.72163031]
[1752909922522,0.10599414,118400.0,118390.0,3.01830251]
[1752909932826,0.10599414,118400.0,118390.0,2.29670251]
[1752909933031,0.10599414,118400.0,118390.0,2.72163031]
[1752909933331,0.10599414,118400.0,118390.0,3.01830251]
[1752909935830,0.27479544,118400.0,118390.0,2.14252031]
[1752909936032,0.27479544,118400.0,118390.0,2.14252301]
[1752909936229,0.42313154,118400.0,118390.0,2.55158741]
[1752909936434,0.42313154,118400.0,118390.0,2.33912351]
[1752909936634,0.42313154,118400.0,118390.0,2.19078741]
[1752909936934,0.42313154,118400.0,118390.0,2.50749911]
[1752909937633,0.42313154,118400.0,118390.0,1.33961911]
[1752909937934,0.27479544,118400.0,118390.0,1.33961911]
[1752909938135,0.42313154,118400.0,118390.0,1.33961911]
[1752909938436,0.27479544,118400.0,118390.0,1.33961911]
[1752909942034,0.42313154,118400.0,118390.0,1.33961911]
[1752909942232,0.27479544,118400.0,118390.0,1.33961911]
[1752909944335,0.27479544,118400.0,118390.0,1.17394617]
[1752909944638,0.27479544,118400.0,118390.0,1.32228227]
[1752909945039,0.27479544,118400.0,118390.0,1.15346667]
[1752909945737,0.27479544,118400.0,118390.0,1.32228227]
[1752909946934,0.27479544,118400.0,118390.0,0.79310667]
[1752909947140,0.27479544,118400.0,118390.0,1.15390667]
[1752909947639,0.27479544,118400.0,118390.0,0.57602667]
[1752909947833,0.42313154,118400.0,118390.0,1.15386667]
[1752909949539,0.42313154,118400.0,118390.0,1.00553057]
[1752909949742,0.42313154,118400.0,118390.0,1.15386667]
[1752909949941,0.27479544,118400.0,118390.0,1.15386667]
[1752909950142,0.42313154,118400.0,118390.0,1.15386667]
[1752909950945,0.27479544,118400.0,118390.0,1.15386667]
[1752909951241,0.42313154,118400.0,118390.0,1.32268227]
[1752909953740,0.42313154,118400.0,118390.0,0.96188227]
[1752909953941,0.42313154,118400.0,118390.0,1.32268227]
[1752909954245,0.42313154,118400.0,118390.0,1.2562317]
[1752909954444,0.42313154,118400.0,118390.0,1.0874161]
[1752909955141,0.42313154,118400.0,118390.0,1.2562317]
[1752909955651,0.42313154,118400.0,118390.0,1.0874161]
[1752909956945,0.42313154,118400.0,118390.0,0.7266161]
[1752909957145,0.27479544,118400.0,118390.0,1.0874161]
[1752909957340,0.42313154,118400.0,118390.0,1.0874161]
[1752909957643,0.42313154,118400.0,118390.0,1.2562317]
[1752909958945,0.42313154,118400.0,118390.0,1.0874161]
[1752909959647,0.42313154,118400.0,118390.0,1.2562317]
[1752909960342,0.42313154,118400.0,118390.0,0.7470956]
[1752909960544,0.42313154,118400.0,118390.0,1.2562317]
[1752909962148,0.42313154,118400.0,118390.0,1.0874161]
[1752909962344,0.42313154,118400.0,118390.0,0.5095761]
[1752909962555,0.2026456,118390.0,118380.0,1.54564404]
[1752909962846,0.42176584,118390.0,118380.0,2.42007624]
[1752909963046,0.42176584,118390.0,118380.0,2.58890604]
[1752909963446,0.92176584,118390.0,118380.0,2.58890604]
[1752909963749,0.92176584,118390.0,118380.0,2.58990604]
[1752909964844,0.92176584,118390.0,118380.0,2.59190604]
[1752909966153,0.92176584,118390.0,118380.0,0.84682604]
[1752909966351,0.92176584,118390.0,118380.0,1.42458604]
[1752909967550,0.92176584,118390.0,118380.0,1.10742014]
[1752909969045,0.92176584,118390.0,118380.0,1.25575624]
[1752909969253,0.92176584,118390.0,118380.0,1.10742014]
[1752909970345,0.92176584,118390.0,118380.0,0.02052404]
[1752909970554,0.92176584,118390.0,118380.0,0.74658014]
[1752909971147,0.94063188,118390.0,118380.0,0.7294961]
[1752909972156,0.94063188,118390.0,118380.0,0.1517761]
[1752909972354,0.94063188,118390.0,118380.0,0.7294961]
[1752909974657,0.94063188,118390.0,118380.0,0.1517761]
[1752909974859,0.94063188,118390.0,118380.0,0.7294561]
[1752909975253,0.79229578,118390.0,118380.0,0.7294561]
[1752909975460,0.94063188,118390.0,118380.0,0.7294561]
[1752909979559,0.94063188,118390.0,118380.0,0.58112]
[1752909979748,0.94063188,118390.0,118380.0,0.7294561]
[1752909982664,0.79229578,118390.0,118380.0,0.7294561]
[1752909982963,0.94063188,118390.0,118380.0,0.7294561]
[1752909984567,0.94063188,118390.0,118380.0,0.58112]
[1752909984762,0.94063188,118390.0,118380.0,0.7294561]
[1752909984962,0.79229578,118390.0,118380.0,0.7294561]
[1752909985262,0.94063188,118390.0,118380.0,0.1517761]
[1752909985464,0.94063188,118390.0,118380.0,0.7294161]
[1752909987972,0.92271774,118390.0,118380.0,0.7294161]
[1752909988575,0.94060671,118390.0,118380.0,0.58108]
[1752909988765,0.94060671,118390.0,118380.0,0.7294161]
[1752909988966,0.92271774,118390.0,118380.0,0.7294161]
[1752909989168,0.94060666,118390.0,118380.0,0.7294161]
[1752909989472,0.94060909,118390.0,118380.0,0.7294161]
[1752909990478,0.79227299,118390.0,118380.0,0.7294161]
[1752909990669,0.94060909,118390.0,118380.0,0.7294161]
[1752909995878,0.94060909,118390.0,118380.0,0.1517761]
[1752909996078,0.94060909,118390.0,118380.0,0.7293761]
[1752909996674,0.94060909,118390.0,118380.0,0.00344]
[1752909996872,0.94060909,118390.0,118380.0,0.7293761]
[1752910001084,0.94060909,118390.0,118380.0,0.1517761]
[1752910001284,0.94060909,118390.0,118380.0,0.7293361]
[1752910001679,0.94060909,118390.0,118380.0,0.003]
[1752910001980,1.44974519,118390.0,118380.0,0.58056]
[1752910003083,1.30140909,118390.0,118380.0,0.58056]
[1752910010082,1.15307299,118390.0,118380.0,0.58056]
[1752910010386,1.30140909,118390.0,118380.0,0.58056]
[1752910011586,1.44974519,118390.0,118380.0,0.58056]
[1752910014382,1.08894519,118390.0,118380.0,0.58056]
[1752910014583,1.44974519,118390.0,118380.0,0.58056]
[1752910029395,1.30140909,118390.0,118380.0,0.58056]
[1752910029698,0.94060909,118390.0,118380.0,0.58056]
[1752910029892,1.30140909,118390.0,118380.0,0.58056]
[1752910033986,1.44974519,118390.0,118380.0,0.58056]
[1752910034392,1.30140909,118390.0,118380.0,0.58056]
[1752910035701,0.94060909,118390.0,118380.0,0.58056]
[1752910035899,1.30140909,118390.0,118380.0,0.58056]
[1752910050013,1.28351774,118390.0,118380.0,0.58056]
[1752910050408,1.13518164,118390.0,118380.0,0.58056]
[1752910050614,1.30142513,118390.0,118380.0,0.58056]
[1752910051415,0.94062513,118390.0,118380.0,0.58056]
[1752910051714,1.30142513,118390.0,118380.0,0.58056]
[1752910052214,1.44976123,118390.0,118380.0,0.58056]
[1752910052421,1.30142513,118390.0,118380.0,0.58056]
[1752910053118,1.15308903,118390.0,118380.0,0.58056]
[1752910053321,1.30142513,118390.0,118380.0,0.58056]
[1752910057614,1.36224393,118390.0,118380.0,0.58056]
[1752910057919,1.30142513,118390.0,118380.0,0.58056]
[1752910059721,1.15308903,118390.0,118380.0,0.58056]
[1752910059918,1.30142513,118390.0,118380.0,0.58056]
[1752910061723,1.30142513,118390.0,118380.0,0.7288961]
[1752910062020,1.30142513,118390.0,118380.0,0.58056]
[1752910062416,0.94062513,118390.0,118380.0,0.58056]
[1752910062609,1.30142513,118390.0,118380.0,0.58056]
[1752910065417,0.94062513,118390.0,118380.0,0.58056]
[1752910065620,1.30142513,118390.0,118380.0,0.58056]
[1752910066816,0.94062513,118390.0,118380.0,0.58056]
[1752910067022,1.30142513,118390.0,118380.0,0.58056]
[1752910069826,0.94062513,118390.0,118380.0,0.58056]
[1752910070126,1.30142513,118390.0,118380.0,0.58056]
[1752910071826,0.94062513,118390.0,118380.0,0.58056]
[1752910072028,1.30142513,118390.0,118380.0,0.58056]
[1752910072633,1.30142513,118390.0,118380.0,0.003]
[1752910072925,1.30142513,118390.0,118380.0,0.58016]
[1752910073528,1.30142513,118390.0,118380.0,0.003]
[1752910073735,1.30142513,118390.0,118380.0,0.58016]
[1752910075126,1.30142513,118390.0,118380.0,0.003]
[1752910075428,1.30142513,118390.0,118380.0,0.58016]
[1752910076333,1.30142513,118390.0,118380.0,0.003]
[1752910076531,1.30142513,118390.0,118380.0,0.58016]
[1752910077332,1.30142513,118390.0,118380.0,0.7284961]
[1752910077531,1.30142513,118390.0,118380.0,0.58016]
[1752910077934,1.30142513,118390.0,118380.0,0.7284961]
[1752910078431,1.30142513,118390.0,118380.0,0.1513361]
[1752910078633,1.30142513,118390.0,118380.0,0.7284561]
[1752910080332,1.30142513,118390.0,118380.0,0.58012]
[1752910080732,1.30142513,118390.0,118380.0,0.003]
[1752910081032,1.30142513,118390.0,118380.0,0.58008]
[1752910081935,0.94062513,118390.0,118380.0,0.58008]
[1752910082137,1.30142513,118390.0,118380.0,0.58008]
[1752910083538,1.30142513,118390.0,118380.0,0.003]
[1752910083729,1.30142513,118390.0,118380.0,0.58008]
[1752910084735,0.94062513,118390.0,118380.0,0.58008]
[1752910084930,1.30142513,118390.0,118380.0,0.58008]
[1752910086239,1.30142513,118390.0,118380.0,0.003]
[1752910086437,1.30142513,118390.0,118380.0,0.58004]
[1752910086837,0.94062513,118390.0,118380.0,0.58004]
[1752910087037,1.30142513,118390.0,118380.0,0.58004]
[1752910089944,0.94062513,118390.0,118380.0,0.58004]
[1752910090140,1.30142513,118390.0,118380.0,0.58004]
[1752910090440,0.94062513,118390.0,118380.0,0.58004]
[1752910090634,1.30142513,118390.0,118380.0,0.58004]
[1752910091941,0.94062513,118390.0,118380.0,0.58004]
[1752910092238,1.30142513,118390.0,118380.0,0.58004]
[1752910092640,1.30121676,118390.0,118380.0,0.58004]
[1752910092842,0.94041676,118390.0,118380.0,0.58004]
[1752910093034,1.30121676,118390.0,118380.0,0.58004]
[1752910097248,1.15288066,118390.0,118380.0,0.58004]
[1752910097447,1.30121676,118390.0,118380.0,0.58004]
[1752910097647,1.15288066,118390.0,118380.0,0.58004]
[1752910097848,1.30121676,118390.0,118380.0,0.58004]
[1752910106956,0.94041676,118390.0,118380.0,0.58004]
[1752910107155,1.30121676,118390.0,118380.0,0.58004]
[1752910107963,0.94041676,118390.0,118380.0,0.58004]
[1752910108278,1.30121676,118390.0,118380.0,0.58004]
[1752910108660,1.15288066,118390.0,118380.0,0.58004]
[1752910108855,1.30121676,118390.0,118380.0,0.58004]
[1752910109466,0.94041676,118390.0,118380.0,0.58004]
[1752910109659,1.30121676,118390.0,118380.0,0.58004]
[1752910110564,1.30119629,118390.0,118380.0,0.58004]
[1752910111859,0.94039629,118390.0,118380.0,0.58004]
[1752910112068,1.30119629,118390.0,118380.0,0.58004]
[1752910113962,0.94039629,118390.0,118380.0,0.58004]
[1752910114168,1.30119629,118390.0,118380.0,0.58004]
[1752910114873,0.94039629,118390.0,118380.0,0.58004]
[1752910115167,1.30119629,118390.0,118380.0,0.58004]
[1752910117465,0.94039629,118390.0,118380.0,0.58004]
[1752910117665,1.30119629,118390.0,118380.0,0.58004]
[1752910120372,1.44953239,118390.0,118380.0,0.57972]
[1752910120765,1.08873239,118390.0,118380.0,0.57972]
[1752910120971,1.44953239,118390.0,118380.0,0.003]
[1752910121264,0.2249538,118370.0,118360.0,0.01774997]
[1752910121472,0.2249538,118370.0,118360.0,0.74280607]
[1752910121473,0.43767182,118370.0,118360.0,0.74280607]
[1752910122372,0.93767182,118370.0,118360.0,0.74280607]
[1752910122574,0.93767182,118370.0,118360.0,0.74680607]
[1752910123772,0.93767182,118370.0,118360.0,0.74880607]
[1752910134883,0.93767182,118370.0,118360.0,0.60046997]
[1752910135182,0.93767182,118370.0,118360.0,0.74880607]
[1752910137481,0.2524881,118360.0,118350.0,1.16816]
[1752910137680,0.92784722,118360.0,118350.0,1.16816]
[1752910137985,0.92784722,118360.0,118350.0,1.74476]
[1752910138587,0.2018269,118340.0,118330.0,0.36124]
[1752910138787,0.41873992,118340.0,118330.0,1.09450723]
[1752910138988,0.41873992,118340.0,118330.0,0.51790723]
[1752910139184,0.41873992,118340.0,118330.0,1.09446723]
[1752910139786,0.27040382,118340.0,118330.0,1.09446723]
[1752910139990,0.41873992,118340.0,118330.0,1.09446723]
[1752910140180,0.41873992,118340.0,118330.0,0.51890723]
[1752910140488,0.41873992,118340.0,118330.0,1.09550723]
[1752910140687,0.41873992,118340.0,118330.0,1.09650723]
[1752910142990,0.27040382,118340.0,118330.0,1.09650723]
[1752910143190,0.41873992,118340.0,118330.0,1.09650723]
[1752910143390,0.98535861,118340.0,118330.0,1.09677723]
[1752910144390,0.98535861,118340.0,118330.0,1.09650723]
[1752910147594,0.98535861,118340.0,118330.0,0.51990723]
[1752910147793,0.98535861,118340.0,118330.0,2.26486723]
[1752910148292,0.98535861,118340.0,118330.0,0.51990723]
[1752910148486,0.98535861,118340.0,118330.0,1.09650723]
[1752910149393,0.98535861,118340.0,118330.0,0.73570723]
[1752910149591,0.98535861,118340.0,118330.0,1.09650723]
[1752910151395,0.98535861,118340.0,118330.0,0.73570723]